[Event "January 2 Early 2024"]
[Site "https://www.chess.com"]
[Date "2024.01.02"]
[Round "8"]
[White "Durarbayli, Vasif"]
[Black "Ovezdurdyyeva, Jemal"]
[Result "1-0"]
[Board "35"]
[TimeControl "180+1"]
[WhiteFideId "13402935"]
[BlackFideId "14001888"]
[WhiteElo "2852"]
[BlackElo "2447"]
[WhiteTeam "AZE"]
[BlackTeam "TKM"]
[WhiteClock "0:01:22"]
[BlackClock "0:00:00"]

1. c4 {[%clk 0:03:00]}  Nf6 {[%clk 0:02:56]} 2. Nc3 {[%clk 0:03:00]}  g6 {[%clk 0:02:56]} 3. g3 {[%clk 0:03:00]}  Bg7 {[%clk 0:02:56]} 4. Bg2 {[%clk 0:03:00]}  O-O {[%clk 0:02:56]} 5. d4 {[%clk 0:03:01]}  c6 {[%clk 0:02:55]} 6. e4 {[%clk 0:03:00]}  d6 {[%clk 0:02:53]} 7. Nge2 {[%clk 0:02:58]}  e5 {[%clk 0:02:51]} 8. O-O {[%clk 0:02:58]}  Nbd7 {[%clk 0:02:46]} 9. Re1 {[%clk 0:02:58]}  Qc7 {[%clk 0:02:41]} 10. h3 {[%clk 0:02:58]}  Rd8 {[%clk 0:02:36]} 11. Bg5 {[%clk 0:02:53]}  h6 {[%clk 0:02:33]} 12. Be3 {[%clk 0:02:54]}  Nf8 {[%clk 0:02:32]} 13. Qd2 {[%clk 0:02:51]}  Kh7 {[%clk 0:02:31]} 14. d5 {[%clk 0:02:51]}  c5 {[%clk 0:02:30]} 15. Kh2 {[%clk 0:02:38]}  Qe7 {[%clk 0:02:27]} 16. Rf1 {[%clk 0:02:35]}  Ng8 {[%clk 0:02:17]} 17. f4 {[%clk 0:02:32]}  exf4 {[%clk 0:02:06]} 18. gxf4 {[%clk 0:02:31]}  f5 {[%clk 0:02:05]} 19. Ng3 {[%clk 0:02:27]}  fxe4 {[%clk 0:02:03]} 20. Bxe4 {[%clk 0:02:26]}  Nf6 {[%clk 0:01:45]} 21. Bc2 {[%clk 0:02:20]}  Re8 {[%clk 0:01:41]} 22. Rae1 {[%clk 0:02:19]}  Qd7 {[%clk 0:01:41]} 23. Qg2 {[%clk 0:02:19]}  a6 {[%clk 0:01:18]} 24. Rg1 {[%clk 0:02:12]}  b5 {[%clk 0:01:12]} 25. Nge4 {[%clk 0:01:52]}  Nxe4 {[%clk 0:01:04]} 26. Nxe4 {[%clk 0:01:46]}  bxc4 {[%clk 0:00:56]} 27. Bxc5 {[%clk 0:01:35]}  dxc5 {[%clk 0:00:40]} 28. Nf6+ {[%clk 0:01:35]}  Bxf6 {[%clk 0:00:37]} 29. Bxg6+ {[%clk 0:01:35]}  Kh8 {[%clk 0:00:26]} 30. Bxe8 {[%clk 0:01:33]}  Qh7 {[%clk 0:00:16]} 31. Bc6 {[%clk 0:01:32]}  Rb8 {[%clk 0:00:15]} 32. Re8 {[%clk 0:01:28]}  Bg7 {[%clk 0:00:15]} 33. d6 {[%clk 0:01:23]}  Rb6 {[%clk 0:00:00]} 34. Rxc8 {[%clk 0:01:22]} 1-0

[Event "January 2 Early 2024"]
[Site "https://www.chess.com"]
[Date "2024.01.02"]
[Round "8"]
[White "NevorLegov"]
[Black "Mgeladze, Tamaz"]
[Result "1-0"]
[Board "37"]
[TimeControl "180+1"]
[BlackFideId "13601202"]
[WhiteElo "2924"]
[BlackElo "2707"]
[BlackTeam "GEO"]
[WhiteClock "0:00:44"]
[BlackClock "0:00:07"]

1. d4 {[%clk 0:02:54]}  Nf6 {[%clk 0:02:59]} 2. c4 {[%clk 0:02:53]}  g6 {[%clk 0:03:00]} 3. Nc3 {[%clk 0:02:52]}  Bg7 {[%clk 0:03:00]} 4. e4 {[%clk 0:02:52]}  O-O {[%clk 0:03:01]} 5. h3 {[%clk 0:02:53]}  d6 {[%clk 0:03:02]} 6. Be3 {[%clk 0:02:53]}  c5 {[%clk 0:03:01]} 7. d5 {[%clk 0:02:46]}  e6 {[%clk 0:03:00]} 8. Nf3 {[%clk 0:02:43]}  exd5 {[%clk 0:02:59]} 9. exd5 {[%clk 0:02:30]}  Re8 {[%clk 0:02:58]} 10. Bd3 {[%clk 0:02:31]}  Nbd7 {[%clk 0:02:49]} 11. O-O {[%clk 0:02:30]}  Ne5 {[%clk 0:02:49]} 12. Nxe5 {[%clk 0:02:29]}  Rxe5 {[%clk 0:02:50]} 13. Bd2 {[%clk 0:02:22]}  Bf5 {[%clk 0:02:46]} 14. Bxf5 {[%clk 0:02:19]}  Rxf5 {[%clk 0:02:47]} 15. f4 {[%clk 0:02:18]}  Rh5 {[%clk 0:02:31]} 16. Qf3 {[%clk 0:02:15]}  Qd7 {[%clk 0:02:11]} 17. Rae1 {[%clk 0:02:05]}  a6 {[%clk 0:01:49]} 18. Re2 {[%clk 0:01:57]}  b5 {[%clk 0:01:48]} 19. g4 {[%clk 0:01:58]}  Rh4 {[%clk 0:01:44]} 20. Qg3 {[%clk 0:01:48]}  Rh6 {[%clk 0:01:30]} 21. f5 {[%clk 0:01:48]}  b4 {[%clk 0:01:23]} 22. Nd1 {[%clk 0:01:42]}  Re8 {[%clk 0:01:15]} 23. Rfe1 {[%clk 0:01:33]}  Rxe2 {[%clk 0:01:12]} 24. Rxe2 {[%clk 0:01:34]}  Nh5 {[%clk 0:00:52]} 25. Qf3 {[%clk 0:01:14]}  Bd4+ {[%clk 0:00:49]} 26. Kg2 {[%clk 0:01:08]}  g5 {[%clk 0:00:31]} 27. Bxg5 {[%clk 0:00:59]}  Rf6 {[%clk 0:00:30]} 28. gxh5 {[%clk 0:00:47]}  Rxf5 {[%clk 0:00:30]} 29. Qg4 {[%clk 0:00:47]}  h6 {[%clk 0:00:20]} 30. Bf6+ {[%clk 0:00:45]}  Rg5 {[%clk 0:00:07]} 31. Bxg5 {[%clk 0:00:44]} 1-0

[Event "January 2 Early 2024"]
[Site "https://www.chess.com"]
[Date "2024.01.02"]
[Round "8"]
[White "Tari, Aryan"]
[Black "Manolache, Marius"]
[Result "1-0"]
[Board "38"]
[TimeControl "180+1"]
[WhiteFideId "1510045"]
[BlackFideId "1201530"]
[WhiteElo "2917"]
[BlackElo "2689"]
[WhiteTeam "NOR"]
[BlackTeam "ROU"]
[WhiteClock "0:00:20"]
[BlackClock "0:00:09"]

1. e4 {[%clk 0:02:41]}  c5 {[%clk 0:02:59]} 2. Nc3 {[%clk 0:02:34]}  e6 {[%clk 0:02:57]} 3. d4 {[%clk 0:02:34]}  cxd4 {[%clk 0:02:57]} 4. Qxd4 {[%clk 0:02:35]}  Nc6 {[%clk 0:02:57]} 5. Qd3 {[%clk 0:02:35]}  a6 {[%clk 0:02:55]} 6. Qg3 {[%clk 0:02:26]}  b5 {[%clk 0:02:46]} 7. Bg5 {[%clk 0:02:25]}  Qa5 {[%clk 0:02:43]} 8. O-O-O {[%clk 0:02:10]}  h6 {[%clk 0:02:10]} 9. Bf4 {[%clk 0:02:09]}  Nf6 {[%clk 0:02:01]} 10. Bc7 {[%clk 0:01:59]}  Nh5 {[%clk 0:01:58]} 11. Bxa5 {[%clk 0:01:47]}  Nxg3 {[%clk 0:01:57]} 12. hxg3 {[%clk 0:01:47]}  Nxa5 {[%clk 0:01:57]} 13. g4 {[%clk 0:01:45]}  Bb7 {[%clk 0:01:55]} 14. Bd3 {[%clk 0:01:45]}  Bc5 {[%clk 0:01:49]} 15. Nh3 {[%clk 0:01:40]}  O-O-O {[%clk 0:01:40]} 16. a3 {[%clk 0:01:37]}  Nc6 {[%clk 0:01:39]} 17. f3 {[%clk 0:01:12]}  f6 {[%clk 0:01:31]} 18. Kb1 {[%clk 0:01:11]}  Ne5 {[%clk 0:01:24]} 19. Nf4 {[%clk 0:01:08]}  Rhe8 {[%clk 0:01:01]} 20. Be2 {[%clk 0:01:06]}  Bc6 {[%clk 0:00:55]} 21. Nh5 {[%clk 0:01:04]}  Re7 {[%clk 0:00:55]} 22. f4 {[%clk 0:01:04]}  Nc4 {[%clk 0:00:55]} 23. Bxc4 {[%clk 0:00:59]}  bxc4 {[%clk 0:00:55]} 24. Ng3 {[%clk 0:00:51]}  Kc7 {[%clk 0:00:49]} 25. Nge2 {[%clk 0:00:50]}  Rb8 {[%clk 0:00:28]} 26. Ka2 {[%clk 0:00:50]}  Rb7 {[%clk 0:00:28]} 27. Nd4 {[%clk 0:00:50]}  Re8 {[%clk 0:00:28]} 28. b4 {[%clk 0:00:25]}  Bf8 {[%clk 0:00:20]} 29. Nxc6 {[%clk 0:00:23]}  Kxc6 {[%clk 0:00:20]} 30. Rd4 {[%clk 0:00:24]}  d5 {[%clk 0:00:15]} 31. exd5+ {[%clk 0:00:24]}  exd5 {[%clk 0:00:15]} 32. Nxd5 {[%clk 0:00:23]}  Rd7 {[%clk 0:00:14]} 33. Rhd1 {[%clk 0:00:21]}  Red8 {[%clk 0:00:15]} 34. Rxc4+ {[%clk 0:00:22]}  Kb7 {[%clk 0:00:15]} 35. Rcd4 {[%clk 0:00:21]}  f5 {[%clk 0:00:14]} 36. gxf5 {[%clk 0:00:21]}  Rd6 {[%clk 0:00:14]} 37. g4 {[%clk 0:00:20]}  R6d7 {[%clk 0:00:14]} 38. c4 {[%clk 0:00:21]}  Be7 {[%clk 0:00:13]} 39. Kb3 {[%clk 0:00:19]}  Bf6 {[%clk 0:00:13]} 40. R4d3 {[%clk 0:00:20]}  Rd6 {[%clk 0:00:12]} 41. c5 {[%clk 0:00:20]}  R6d7 {[%clk 0:00:13]} 42. Kc4 {[%clk 0:00:21]}  Rc8 {[%clk 0:00:12]} 43. Nxf6 {[%clk 0:00:20]}  Rxd3 {[%clk 0:00:12]} 44. Rxd3 {[%clk 0:00:21]}  gxf6 {[%clk 0:00:12]} 45. Rd7+ {[%clk 0:00:22]}  Kb8 {[%clk 0:00:12]} 46. a4 {[%clk 0:00:21]}  Rg8 {[%clk 0:00:12]} 47. b5 {[%clk 0:00:21]}  Rxg4 {[%clk 0:00:13]} 48. c6 {[%clk 0:00:20]}  Rxf4+ {[%clk 0:00:11]} 49. Kc5 {[%clk 0:00:21]}  axb5 {[%clk 0:00:09]} 50. axb5 {[%clk 0:00:20]} 1-0

[Event "January 2 Early 2024"]
[Site "https://www.chess.com"]
[Date "2024.01.02"]
[Round "8"]
[White "Galchenko, Matvey"]
[Black "Csonka, Balazs"]
[Result "1-0"]
[Board "39"]
[TimeControl "180+1"]
[WhiteFideId "24175480"]
[BlackFideId "742910"]
[WhiteElo "2893"]
[BlackElo "2673"]
[WhiteTeam "FID"]
[BlackTeam "HUN"]
[WhiteClock "0:00:16"]
[BlackClock "0:00:00"]

1. e4 {[%clk 0:03:00]}  d6 {[%clk 0:02:59]} 2. d4 {[%clk 0:02:59]}  Nf6 {[%clk 0:03:00]} 3. Nc3 {[%clk 0:02:59]}  e5 {[%clk 0:03:01]} 4. Nf3 {[%clk 0:02:59]}  exd4 {[%clk 0:02:58]} 5. Nxd4 {[%clk 0:03:00]}  Be7 {[%clk 0:02:58]} 6. g3 {[%clk 0:03:00]}  Bg4 {[%clk 0:02:49]} 7. f3 {[%clk 0:03:00]}  Bd7 {[%clk 0:02:49]} 8. Bg2 {[%clk 0:02:59]}  O-O {[%clk 0:02:49]} 9. O-O {[%clk 0:02:57]}  Nc6 {[%clk 0:02:49]} 10. Be3 {[%clk 0:02:56]}  Re8 {[%clk 0:02:41]} 11. Nde2 {[%clk 0:02:46]}  Bf8 {[%clk 0:02:35]} 12. Qd2 {[%clk 0:02:44]}  Be6 {[%clk 0:02:17]} 13. Nf4 {[%clk 0:02:41]}  Bc4 {[%clk 0:02:16]} 14. Rfe1 {[%clk 0:02:38]}  Ne5 {[%clk 0:02:04]} 15. b3 {[%clk 0:02:36]}  Ba6 {[%clk 0:02:03]} 16. Rad1 {[%clk 0:02:33]}  c6 {[%clk 0:01:58]} 17. a4 {[%clk 0:02:26]}  d5 {[%clk 0:01:34]} 18. exd5 {[%clk 0:02:19]}  Bb4 {[%clk 0:01:35]} 19. Bd4 {[%clk 0:02:18]}  Qd6 {[%clk 0:01:24]} 20. Qf2 {[%clk 0:01:27]}  c5 {[%clk 0:00:48]} 21. Bxe5 {[%clk 0:01:25]}  Rxe5 {[%clk 0:00:48]} 22. Rxe5 {[%clk 0:01:26]}  Qxe5 {[%clk 0:00:48]} 23. Ne4 {[%clk 0:01:23]}  Nxe4 {[%clk 0:00:39]} 24. fxe4 {[%clk 0:01:24]}  c4 {[%clk 0:00:21]} 25. bxc4 {[%clk 0:01:08]}  Bxc4 {[%clk 0:00:22]} 26. Kh1 {[%clk 0:01:08]}  b6 {[%clk 0:00:15]} 27. Nd3 {[%clk 0:01:05]}  Bxd3 {[%clk 0:00:14]} 28. cxd3 {[%clk 0:01:06]}  Rc8 {[%clk 0:00:13]} 29. d4 {[%clk 0:01:04]}  Qg5 {[%clk 0:00:13]} 30. Rf1 {[%clk 0:00:57]}  f6 {[%clk 0:00:12]} 31. e5 {[%clk 0:00:34]}  Qd2 {[%clk 0:00:10]} 32. Qxd2 {[%clk 0:00:30]}  Bxd2 {[%clk 0:00:11]} 33. d6 {[%clk 0:00:31]}  Kf8 {[%clk 0:00:07]} 34. e6 {[%clk 0:00:29]}  Be3 {[%clk 0:00:03]} 35. d7 {[%clk 0:00:15]}  Rd8 {[%clk 0:00:00]} 36. Re1 {[%clk 0:00:16]} 1-0

[Event "January 2 Early 2024"]
[Site "https://www.chess.com"]
[Date "2024.01.02"]
[Round "8"]
[White "Kuzhylnyi, Oleksandr"]
[Black "Yeletsky, Ivan"]
[Result "1/2-1/2"]
[Board "40"]
[TimeControl "180+1"]
[WhiteFideId "34110500"]
[BlackFideId "24180327"]
[WhiteElo "2669"]
[BlackElo "2849"]
[WhiteTeam "UKR"]
[BlackTeam "RUS"]
[WhiteClock "0:00:10"]
[BlackClock "0:00:07"]

1. d4 {[%clk 0:03:00]}  Nf6 {[%clk 0:02:59]} 2. Nf3 {[%clk 0:03:00]}  Nc6 {[%clk 0:03:00]} 3. Nc3 {[%clk 0:02:54]}  e6 {[%clk 0:02:59]} 4. a3 {[%clk 0:02:52]}  d5 {[%clk 0:02:54]} 5. Bg5 {[%clk 0:02:53]}  Be7 {[%clk 0:02:54]} 6. Qd3 {[%clk 0:02:50]}  b6 {[%clk 0:02:43]} 7. O-O-O {[%clk 0:02:49]}  a5 {[%clk 0:02:43]} 8. Bxf6 {[%clk 0:02:34]}  Bxf6 {[%clk 0:02:43]} 9. e4 {[%clk 0:02:34]}  O-O {[%clk 0:02:39]} 10. Qb5 {[%clk 0:02:24]}  Na7 {[%clk 0:01:50]} 11. Qe2 {[%clk 0:02:23]}  b5 {[%clk 0:01:49]} 12. exd5 {[%clk 0:01:45]}  exd5 {[%clk 0:01:40]} 13. Nxb5 {[%clk 0:01:44]}  Ba6 {[%clk 0:01:30]} 14. c4 {[%clk 0:01:26]}  dxc4 {[%clk 0:01:31]} 15. Nc3 {[%clk 0:01:26]}  Rb8 {[%clk 0:01:25]} 16. Ne5 {[%clk 0:01:24]}  Re8 {[%clk 0:01:05]} 17. f4 {[%clk 0:01:15]}  c6 {[%clk 0:00:49]} 18. Qc2 {[%clk 0:01:07]}  Qb6 {[%clk 0:00:43]} 19. Nd7 {[%clk 0:01:04]}  Qc7 {[%clk 0:00:43]} 20. Nxb8 {[%clk 0:01:03]}  Qxf4+ {[%clk 0:00:38]} 21. Kb1 {[%clk 0:01:01]}  Rxb8 {[%clk 0:00:34]} 22. g3 {[%clk 0:00:59]}  Qg4 {[%clk 0:00:26]} 23. Bg2 {[%clk 0:00:55]}  Nb5 {[%clk 0:00:26]} 24. Nxb5 {[%clk 0:00:47]}  cxb5 {[%clk 0:00:27]} 25. Qe4 {[%clk 0:00:43]}  Qxe4+ {[%clk 0:00:24]} 26. Bxe4 {[%clk 0:00:43]}  b4 {[%clk 0:00:25]} 27. axb4 {[%clk 0:00:41]}  axb4 {[%clk 0:00:26]} 28. Rhe1 {[%clk 0:00:35]}  c3 {[%clk 0:00:16]} 29. bxc3 {[%clk 0:00:31]}  bxc3+ {[%clk 0:00:17]} 30. Kc2 {[%clk 0:00:32]}  Rb2+ {[%clk 0:00:16]} 31. Kxc3 {[%clk 0:00:32]}  Rxh2 {[%clk 0:00:17]} 32. Rh1 {[%clk 0:00:29]}  Re2 {[%clk 0:00:13]} 33. Bxh7+ {[%clk 0:00:29]}  Kf8 {[%clk 0:00:13]} 34. Bd3 {[%clk 0:00:20]}  Re3 {[%clk 0:00:13]} 35. Kc2 {[%clk 0:00:20]}  Bb7 {[%clk 0:00:10]} 36. Rh3 {[%clk 0:00:16]}  g6 {[%clk 0:00:06]} 37. Rh2 {[%clk 0:00:09]}  Rxg3 {[%clk 0:00:04]} 38. d5 {[%clk 0:00:07]}  Bxd5 {[%clk 0:00:03]} 39. Rf2 {[%clk 0:00:07]}  Kg7 {[%clk 0:00:03]} 40. Rdf1 {[%clk 0:00:06]}  Bd4 {[%clk 0:00:04]} 41. Rf4 {[%clk 0:00:05]}  Be5 {[%clk 0:00:04]} 42. R4f2 {[%clk 0:00:05]}  f5 {[%clk 0:00:04]} 43. Bxf5 {[%clk 0:00:05]}  gxf5 {[%clk 0:00:05]} 44. Rxf5 {[%clk 0:00:05]}  Be4+ {[%clk 0:00:06]} 45. Kd2 {[%clk 0:00:06]}  Bc3+ {[%clk 0:00:05]} 46. Ke2 {[%clk 0:00:06]}  Bxf5 {[%clk 0:00:04]} 47. Rxf5 {[%clk 0:00:07]}  Bf6 {[%clk 0:00:04]} 48. Rb5 {[%clk 0:00:07]}  Rg2+ {[%clk 0:00:04]} 49. Kf3 {[%clk 0:00:07]}  Ra2 {[%clk 0:00:04]} 50. Rb3 {[%clk 0:00:07]}  Kg6 {[%clk 0:00:05]} 51. Rd3 {[%clk 0:00:08]}  Be5 {[%clk 0:00:05]} 52. Rd5 {[%clk 0:00:08]}  Kf5 {[%clk 0:00:05]} 53. Rd7 {[%clk 0:00:08]}  Ra3+ {[%clk 0:00:06]} 54. Ke2 {[%clk 0:00:08]}  Ke4 {[%clk 0:00:06]} 55. Re7 {[%clk 0:00:09]}  Ra2+ {[%clk 0:00:06]} 56. Ke1 {[%clk 0:00:09]}  Kd4 {[%clk 0:00:06]} 57. Kf1 {[%clk 0:00:09]}  Rb2 {[%clk 0:00:06]} 58. Re8 {[%clk 0:00:10]}  Ke4 {[%clk 0:00:06]} 59. Ke1 {[%clk 0:00:09]}  Rb5 {[%clk 0:00:05]} 60. Ke2 {[%clk 0:00:09]}  Kf5 {[%clk 0:00:04]} 61. Rf8+ {[%clk 0:00:09]}  Kg4 {[%clk 0:00:04]} 62. Re8 {[%clk 0:00:09]}  Rd5 {[%clk 0:00:03]} 63. Rf8 {[%clk 0:00:09]}  Bf4 {[%clk 0:00:03]} 64. Rg8+ {[%clk 0:00:05]}  Bg5 {[%clk 0:00:04]} 65. Rf8 {[%clk 0:00:05]}  Rd2+ {[%clk 0:00:05]} 66. Ke1 {[%clk 0:00:05]}  Ra2 {[%clk 0:00:05]} 67. Kd1 {[%clk 0:00:05]}  Bf4 {[%clk 0:00:06]} 68. Rc8 {[%clk 0:00:03]}  Kf3 {[%clk 0:00:07]} 69. Rc2 {[%clk 0:00:03]}  Be3 {[%clk 0:00:07]} 70. Rxa2 {[%clk 0:00:03]}  Bf4 {[%clk 0:00:08]} 71. Ra3+ {[%clk 0:00:03]}  Ke4 {[%clk 0:00:08]} 72. Ke2 {[%clk 0:00:04]}  Kd4 {[%clk 0:00:08]} 73. Ra4+ {[%clk 0:00:05]}  Ke5 {[%clk 0:00:09]} 74. Ra5+ {[%clk 0:00:06]}  Ke4 {[%clk 0:00:09]} 75. Ra4+ {[%clk 0:00:07]}  Ke5 {[%clk 0:00:09]} 76. Kf3 {[%clk 0:00:08]}  Bd2 {[%clk 0:00:09]} 77. Ra3 {[%clk 0:00:08]}  Kd4 {[%clk 0:00:08]} 78. Ra2 {[%clk 0:00:08]}  Kd3 {[%clk 0:00:07]} 79. Ra8 {[%clk 0:00:08]}  Be1 {[%clk 0:00:05]} 80. Rd8+ {[%clk 0:00:08]}  Kc4 {[%clk 0:00:06]} 81. Ke4 {[%clk 0:00:09]}  Kc5 {[%clk 0:00:06]} 82. Rd5+ {[%clk 0:00:08]}  Kc6 {[%clk 0:00:06]} 83. Rd1 {[%clk 0:00:09]}  Bb4 {[%clk 0:00:06]} 84. Ke5 {[%clk 0:00:07]}  Bc3+ {[%clk 0:00:06]} 85. Ke6 {[%clk 0:00:07]}  Bb2 {[%clk 0:00:06]} 86. Rd2 {[%clk 0:00:07]}  Ba3 {[%clk 0:00:07]} 87. Rc2+ {[%clk 0:00:08]}  Kb7 {[%clk 0:00:05]} 88. Ra2 {[%clk 0:00:06]}  Bc5 {[%clk 0:00:05]} 89. Kd5 {[%clk 0:00:06]}  Bg1 {[%clk 0:00:05]} 90. Rg2 {[%clk 0:00:06]}  Ba7 {[%clk 0:00:05]} 91. Rg6 {[%clk 0:00:06]}  Ka8 {[%clk 0:00:06]} 92. Kc6 {[%clk 0:00:06]}  Bb8 {[%clk 0:00:06]} 93. Rg7 {[%clk 0:00:05]}  Ba7 {[%clk 0:00:06]} 94. Rg8+ {[%clk 0:00:03]}  Bb8 {[%clk 0:00:07]} 95. Rg2 {[%clk 0:00:04]}  Ba7 {[%clk 0:00:07]} 96. Rb2 {[%clk 0:00:04]}  Bb8 {[%clk 0:00:08]} 97. Rb1 {[%clk 0:00:04]}  Ba7 {[%clk 0:00:08]} 98. Kd7 {[%clk 0:00:05]}  Bb8 {[%clk 0:00:08]} 99. Rb2 {[%clk 0:00:06]}  Ba7 {[%clk 0:00:08]} 100. Rb3 {[%clk 0:00:06]}  Bb8 {[%clk 0:00:08]} 101. Kc8 {[%clk 0:00:07]}  Ba7 {[%clk 0:00:08]} 102. Rb1 {[%clk 0:00:08]}  Bc5 {[%clk 0:00:07]} 103. Rb5 {[%clk 0:00:08]}  Ba7 {[%clk 0:00:07]} 104. Rb3 {[%clk 0:00:08]}  Bf2 {[%clk 0:00:06]} 105. Ra3+ {[%clk 0:00:09]}  Ba7 {[%clk 0:00:06]} 106. Rd3 {[%clk 0:00:09]}  Bf2 {[%clk 0:00:05]} 107. Rd7 {[%clk 0:00:10]}  Ba7 {[%clk 0:00:05]} 108. Kc7 {[%clk 0:00:10]}  Bb8+ {[%clk 0:00:06]} 109. Kc6 {[%clk 0:00:11]}  Ba7 {[%clk 0:00:06]} 110. Rh7 {[%clk 0:00:12]}  Bb8 {[%clk 0:00:06]} 111. Kb6 {[%clk 0:00:11]}  Bf4 {[%clk 0:00:06]} 112. Ka6 {[%clk 0:00:10]}  Kb8 {[%clk 0:00:05]} 113. Rf7 {[%clk 0:00:09]}  Bg3 {[%clk 0:00:05]} 114. Kb6 {[%clk 0:00:09]}  Kc8 {[%clk 0:00:05]} 115. Kc6 {[%clk 0:00:09]}  Kb8 {[%clk 0:00:05]} 116. Rb7+ {[%clk 0:00:09]}  Ka8 {[%clk 0:00:06]} 117. Rb3 {[%clk 0:00:10]}  Bb8 {[%clk 0:00:06]} 118. Kb6 {[%clk 0:00:10]}  Ba7+ {[%clk 0:00:06]} 119. Ka6 {[%clk 0:00:10]}  Bb8 {[%clk 0:00:07]} 120. Rh3 {[%clk 0:00:10]} 1/2-1/2